bitfinex-derivatives/quotes_ETHF0:USTF0_20250923
["timestamp","ask_amount","ask_price","bid_price","bid_amount"]
[1758662746513,3.7552,4171.9,4171.8,1.17472]
[1758662748620,0.5474,4171.9,4171.8,1.17472]
[1758662749521,0.7685,4171.9,4171.8,1.17472]
[1758662752727,0.5474,4171.9,4171.8,1.17472]
[1758662752919,0.7685,4171.9,4171.8,1.17472]
[1758662754321,0.7685,4171.9,4171.5,0.3036]
[1758662754526,0.5299,4171.7,4171.6,0.43134]
[1758662754823,0.737,4171.7,4171.6,0.63564]
[1758662755027,0.737,4171.7,4171.6,0.93924]
[1758662758827,0.737,4171.7,4171.6,1.14844]
[1758662761431,0.737,4171.7,4171.6,0.63564]
[1758662761621,0.737,4171.7,4171.6,0.93924]
[1758662764831,1.16833,4171.7,4171.6,0.5079]
[1758662765025,1.16833,4171.7,4171.3,4.14707]
[1758662765026,0.4101,4171.4,4171.3,4.14707]
[1758662765231,0.737,4171.4,4171.3,4.14707]
[1758662765433,0.737,4171.4,4171.3,4.35627]
[1758662768132,0.737,4171.4,4171.3,3.4121]
[1758662768340,0.4314,4171.1,4171.0,0.3036]
[1758662768536,1.1684,4171.1,4171.0,0.3036]
[1758662768932,1.1684,4171.1,4171.0,1.14851]
[1758662769737,0.737,4171.1,4171.0,1.14851]
[1758662770239,0.737,4171.1,4171.0,1.27111]
[1758662783453,0.2071,4171.1,4171.0,1.27111]
[1758662783750,0.6646,4171.3,4171.2,1.17479]
[1758662783952,3.2078,4171.4,4171.3,0.43137]
[1758662784151,3.2078,4171.4,4171.3,1.17477]
[1758662786957,0.6646,4171.7,4171.6,0.87104]
[1758662787254,0.9953,4171.7,4171.6,1.17474]
[1758662788056,0.5464,4171.7,4171.6,1.17474]
[1758662788256,0.2157,4171.7,4171.6,1.17474]
[1758662790655,3.2078,4172.0,4171.9,1.17471]
[1758662790954,3.4488,4172.0,4171.9,1.17471]
[1758662791159,3.9952,4172.0,4171.9,1.17471]
[1758662791459,3.7542,4172.0,4171.9,1.17471]
[1758662791647,0.3307,4172.3,4172.2,0.43128]
[1758662791956,0.5464,4172.3,4172.2,1.17468]
[1758662792360,0.7543,4172.3,4172.2,1.17468]
[1758662793355,0.5464,4172.3,4172.2,1.17468]
[1758662795464,0.5464,4172.3,4172.0,0.1313]
[1758662795465,3.4235,4172.5,4172.4,0.87096]
[1758662795664,3.9621,4172.5,4172.4,1.17466]
[1758662795969,3.9621,4172.5,4172.4,0.7434]
[1758662796169,4.0876,4172.5,4172.4,0.7434]
[1758662796361,4.51885,4172.5,4172.4,0.7434]
[1758662796562,4.51885,4172.5,4172.4,0.2222]
[1758662797058,4.51885,4172.5,4172.2,0.73498]
[1758662797059,0.3307,4172.4,4172.2,0.73498]
[1758662797367,0.7543,4172.3,4172.2,0.95718]
[1758662798475,0.7543,4172.3,4172.2,0.65348]
[1758662798677,0.7543,4172.3,4172.2,0.95718]
[1758662799877,1.18557,4172.3,4172.2,0.95718]
[1758662804481,1.18557,4172.3,4172.2,0.5259]
[1758662805082,1.18557,4172.3,4172.2,0.7434]
[1758662805282,1.18557,4172.3,4172.2,1.17468]
[1758662805578,1.18557,4172.3,4172.2,0.7434]
[1758662807884,0.7543,4172.3,4172.2,0.7434]
[1758662808080,1.18557,4172.3,4172.2,0.7434]
[1758662809384,0.7543,4172.3,4172.2,1.17468]
[1758662809886,0.7543,4172.3,4172.2,0.7434]
[1758662810486,1.18557,4172.3,4172.2,0.7434]
[1758662810783,1.18557,4172.3,4172.2,0.2222]
[1758662811087,0.7543,4171.7,4171.6,0.2222]
[1758662811385,0.7543,4171.7,4171.6,0.87104]
[1758662811687,0.2157,4171.7,4171.6,1.17474]
[1758662812184,0.5464,4171.7,4171.6,1.17474]
[1758662812889,0.2157,4171.7,4171.6,1.17474]
[1758662813186,0.3307,4171.9,4171.7,0.43132]
[1758662813386,0.552,4171.9,4171.8,0.7587]
[1758662815595,0.552,4171.9,4171.8,1.19002]
[1758662815790,0.552,4171.9,4171.8,0.7587]
[1758662817888,0.552,4171.9,4171.8,1.19002]
[1758662818987,0.2213,4172.1,4172.0,0.9876]
[1758662819290,0.5459,4172.1,4172.0,0.8829]
[1758662819788,0.5459,4172.1,4172.0,1.3142]
[1758662825593,0.2213,4172.1,4172.0,1.3142]
[1758662825795,0.5459,4172.1,4172.0,1.3142]
[1758662828894,0.3246,4173.4,4173.3,0.43116]
[1758662829192,0.5459,4173.4,4173.3,1.18986]
[1758662832296,0.2213,4173.4,4173.3,0.7587]
[1758662832494,0.5494,4173.4,4173.3,0.7587]
[1758662833692,0.241,4173.8,4173.7,0.434]
[1758662833897,0.7762,4173.8,4173.7,0.7607]
[1758662834097,0.9994,4173.8,4173.7,0.7607]
[1758662834901,1.43051,4173.8,4173.7,0.7607]
[1758662835493,0.2071,4173.8,4173.7,1.19182]
[1758662836395,0.5352,4173.9,4173.8,0.7607]
[1758662836802,0.9663,4173.9,4173.8,0.7607]
[1758662837101,1.1895,4173.9,4173.8,0.7607]
[1758662837602,1.1895,4173.9,4173.8,0.2193]
[1758662837899,1.1895,4173.9,4173.8,0.546]
[1758662841805,0.86143,4173.7,4173.6,0.2193]
[1758662842002,1.18953,4173.7,4173.6,0.7607]
[1758662846006,1.18953,4173.7,4173.6,1.19184]
[1758662847008,1.18953,4173.7,4173.6,0.7607]
[1758662849300,1.18953,4173.7,4173.6,1.19183]
[1758662849811,1.16249,4173.1,4173.0,0.3095]
[1758662850007,0.304,4172.8,4172.7,0.67222]
[1758662850207,0.7313,4172.8,4172.7,0.7555]
[1758662850615,0.7313,4172.8,4172.7,1.18673]
[1758662851813,0.7313,4172.8,4172.7,0.7555]
[1758662852014,0.7313,4172.8,4172.7,0.5145]
[1758662852913,0.7313,4172.8,4172.7,0.94573]
[1758662853308,0.7313,4172.8,4172.7,0.738]
[1758662853611,1.16252,4172.8,4172.7,0.738]
[1758662853811,1.16252,4172.8,4172.4,0.3095]
[1758662853812,0.43123,4172.7,4172.4,0.3095]
[1758662854010,0.8643,4172.5,4172.4,0.5145]
[1758662855717,0.8643,4172.5,4172.4,0.94576]
[1758662857224,0.7313,4172.5,4172.4,1.16926]
[1758662861525,3.2078,4173.2,4173.1,1.16918]
[1758662861824,0.7313,4173.4,4173.3,0.3095]
[1758662862027,0.7313,4173.4,4173.3,1.16916]
[1758662863924,3.431,4174.4,4174.3,0.738]
[1758662864519,0.2232,4174.4,4174.3,0.738]
[1758662865426,0.7313,4174.4,4174.3,0.738]
[1758662865619,0.7313,4174.4,4174.3,0.5145]
[1758662865926,0.7313,4174.4,4174.3,0.205]
[1758662866128,0.7313,4174.4,4174.3,0.5145]
[1758662866519,0.7313,4174.4,4174.3,0.738]
[1758662868624,0.43111,4173.9,4173.8,0.5145]
[1758662868822,0.7313,4173.9,4173.8,0.738]
[1758662869829,0.5081,4173.9,4173.8,0.738]
[1758662870124,0.304,4174.2,4174.1,0.738]
[1758662870429,1.16237,4174.2,4174.1,0.738]
[1758662871324,0.7313,4174.2,4174.1,0.738]
[1758662872230,1.16237,4174.2,4174.1,0.738]
[1758662873620,1.1581,4173.9,4173.8,0.5197]
[1758662873824,0.727,4173.9,4173.8,1.16851]
[1758662874027,0.4181,4173.9,4173.8,1.16851]
[1758662875126,0.727,4173.9,4173.8,1.16851]
[1758662875325,0.4181,4173.9,4173.8,1.16851]
[1758662875925,0.727,4173.9,4173.8,1.16851]
[1758662876871,3.2078,4174.4,4173.8,1.16851]
[1758662876872,3.2078,4174.4,4174.3,0.7374]
[1758662877147,0.3089,4174.6,4174.3,0.7374]
[1758662877148,0.3089,4174.6,4174.5,0.43104]
[1758662877437,0.727,4174.6,4174.5,0.64334]
[1758662877735,0.727,4174.6,4174.5,0.86104]
[1758662877922,0.727,4174.6,4174.5,1.29224]
[1758662880132,0.5171,4174.6,4174.5,1.29224]
[1758662880434,3.9348,4174.9,4174.8,1.16841]
[1758662887737,4.3658,4174.9,4174.8,1.16841]
[1758662887937,3.9348,4174.9,4174.8,1.16841]
[1758662890640,0.727,4174.9,4174.8,1.16841]
[1758662892243,0.2082,4174.9,4174.8,1.16841]
[1758662892740,0.5377,4174.9,4174.8,1.16841]
[1758662892940,0.7418,4174.9,4174.8,1.16841]
[1758662900447,3.2078,4175.4,4175.3,1.16686]
[1758662900839,3.4279,4175.4,4175.3,1.16686]
[1758662901039,0.5496,4175.4,4175.3,1.16686]
[1758662905545,0.5551,4175.4,4175.3,1.16686]
[1758662906334,4.19319,4176.0,4175.9,0.2043]
[1758662906537,4.69878656,4176.0,4175.9,0.5145]
[1758662906741,4.69878656,4176.0,4175.9,0.9454]
[1758662906940,5.03378656,4176.0,4175.9,0.9454]
[1758662907334,4.52819,4176.0,4175.9,0.9454]
[1758662907534,4.52819,4176.0,4175.9,1.1472]
[1758662907535,4.0973,4176.0,4175.9,1.1472]
[1758662907734,3.9743,4176.0,4175.9,1.1472]
[1758662909549,3.2078,4176.0,4175.9,1.1472]
[1758662910348,0.2201,4176.1,4176.0,0.1259]
[1758662910650,0.2201,4176.1,4176.0,1.27309]
[1758662911051,0.65098,4176.1,4176.0,0.8422]
[1758662911349,0.98598,4176.1,4176.0,0.8422]
[1758662911548,1.19738,4176.1,4176.0,0.8422]
[1758662911750,1.19738,4176.1,4176.0,1.27309]
[1758662912151,1.19738,4176.1,4176.0,0.5145]
[1758662912348,0.2114,4175.8,4175.7,0.5145]
[1758662912547,0.1257,4175.5,4175.4,0.3102]
[1758662912753,0.8922,4175.5,4175.4,0.7555]
[1758662913443,0.7665,4175.5,4175.4,1.18644]
[1758662913955,0.7665,4175.5,4175.4,1.38824]
[1758662918156,0.2201,4175.5,4175.4,1.38824]
[1758662919955,0.5551,4175.5,4175.4,1.38824]
[1758662925861,0.2201,4175.5,4175.4,1.38824]
[1758662927273,0.335,4175.7,4175.6,1.14723]
[1758662927569,0.5551,4175.7,4175.6,1.38823]
[1758662927763,0.7665,4175.7,4175.6,1.38823]
[1758662929363,0.2201,4175.4,4175.3,0.3102]
[1758662929563,0.2201,4175.4,4175.3,1.18646]
[1758662929564,0.7665,4175.4,4175.3,1.18646]
[1758662929956,0.7665,4175.4,4175.3,1.38826]
[1758662936365,0.7665,4175.4,4175.3,1.18646]
[1758662939961,0.7665,4175.4,4175.3,1.38806]
[1758662947868,0.86246,4175.4,4175.1,0.3168]
[1758662948177,1.15967,4175.3,4175.2,0.98877]
[1758662948478,1.15968,4175.2,4175.1,0.43098]
[1758662948976,0.8579,4175.0,4174.9,0.9888]
[1758662950376,0.8579,4175.0,4174.9,1.1941]
[1758662951478,0.7287,4175.0,4174.9,1.1941]
[1758662951678,0.7287,4175.0,4174.9,1.3957]
[1758662954082,0.7287,4175.0,4174.9,1.1547]
[1758662964678,3.5186,4175.6,4175.0,0.5594]
[1758662964980,3.9478,4175.6,4175.5,0.7294]
[1758662965378,3.9478,4175.6,4175.5,1.16035]
[1758662966079,3.2078,4175.6,4175.5,1.28875]
[1758662966583,3.7425,4175.6,4175.5,1.28875]
[1758662968580,3.9478,4175.6,4175.5,1.28875]
[1758662969278,3.7239,4175.6,4175.5,1.28875]
[1758662969479,3.2078,4175.6,4175.5,1.28875]
[1758662969785,3.4317,4175.6,4175.5,1.28875]
[1758662970578,3.2078,4176.1,4176.0,0.4172]
[1758662970780,3.2078,4176.1,4176.0,1.2887]
[1758662971380,3.4317,4176.1,4176.0,1.2887]
[1758662971578,3.7425,4176.1,4176.0,1.2887]
[1758662971784,3.4317,4176.1,4176.0,1.2887]
[1758662971985,3.2078,4176.1,4176.0,1.2887]
[1758662976989,0.00720086,4176.3,4176.2,0.84808]
[1758662977189,0.00720086,4176.3,4176.2,1.16028]
[1758662977887,0.23110086,4176.3,4176.2,1.16028]
[1758662978089,0.54190086,4176.3,4176.2,1.16028]
[1758662980196,0.00720086,4176.3,4176.2,1.16028]
[1758662984390,0.00720086,4176.3,4176.2,1.40128]
[1758662985599,0.74,4176.9,4176.8,1.16021]
[1758662985800,0.74,4176.9,4176.8,1.40121]
[1758662987202,1.1708,4176.9,4176.8,0.241]
[1758662987500,0.74,4176.9,4176.8,0.67181]
[1758662987702,1.1708,4176.9,4176.8,0.67181]
[1758662988399,1.1708,4176.9,4176.8,0.43081]
[1758662989001,0.74,4176.9,4176.8,0.95451]
[1758662989406,0.74,4176.9,4176.8,0.43081]
[1758662989604,0.74,4176.9,4176.8,0.95451]
[1758662990705,1.1708,4176.9,4176.8,0.43081]
[1758662991997,0.74,4176.9,4176.8,0.95451]
[1758662992404,0.74,4176.9,4176.8,1.16021]
[1758662993311,1.1708,4176.9,4176.8,1.16021]
[1758662993504,0.74,4176.9,4176.8,1.16021]
[1758662994909,0.2239,4176.9,4176.8,1.16021]
[1758662995108,4.15159,4177.1,4177.0,1.14999]
[1758662995305,4.36209,4177.1,4177.0,0.7192]
[1758662995509,0.43082,4176.8,4176.7,0.2044]
[1758662995810,1.15432,4176.8,4176.7,0.94662]
[1758662996513,1.15432,4176.8,4176.7,1.15002]
[1758662996714,0.7235,4176.8,4176.7,1.15002]
[1758662998414,1.15431,4176.8,4176.7,1.15002]
[1758662999416,0.7235,4176.8,4176.7,1.15002]
[1758663000416,3.63861,4176.9,4176.5,0.1284]
[1758663000417,3.2078,4176.9,4176.8,1.15001]
[1758663000614,3.4163,4176.9,4176.8,1.15001]
[1758663001216,3.2078,4176.9,4176.8,1.15001]
[1758663002916,3.2078,4176.9,4176.8,1.39101]
[1758663003515,3.4163,4176.9,4176.8,1.39101]
[1758663003711,3.7208,4176.9,4176.8,1.39101]
[1758663005120,3.9313,4176.9,4176.8,1.39101]
[1758663005414,3.9313,4176.9,4176.3,1.71891868]
[1758663005415,0.63933,4176.7,4176.6,0.3114]
[1758663005717,0.63933,4176.7,4176.3,1.71891868]
[1758663005718,0.8473,4176.5,4176.4,1.18765]
[1758663006320,0.8473,4176.5,4176.4,0.7568]
[1758663006516,0.7235,4176.5,4176.4,0.9602]
[1758663006822,0.7235,4176.5,4176.4,1.39106]
[1758663007912,0.7235,4176.5,4176.4,0.7192]
[1758663008118,0.7235,4176.4,4176.3,0.74227]
[1758663008310,0.7235,4176.4,4176.3,0.94667]
[1758663009527,0.84986,4176.4,4176.2,0.67187]
[1758663009820,0.1238,4176.5,4175.9,4.92671868]
[1758663009821,1.15437,4176.3,4175.9,4.92671868]
[1758663010026,0.7235,4175.9,4175.8,0.43091]
[1758663010219,0.7235,4176.3,4176.2,0.2044]
[1758663010424,0.7235,4176.3,4176.2,0.5158]
[1758663012829,0.7235,4176.3,4176.2,0.7192]
[1758663013128,0.7235,4176.3,4176.2,1.15008]
[1758663013524,1.15437,4176.3,4176.2,0.94668]
[1758663014129,0.7235,4176.3,4176.2,0.94668]
[1758663016534,0.7235,4176.3,4176.2,1.15778]
[1758663018632,0.419,4176.3,4176.2,1.15778]
[1758663019032,1.16307,4176.3,4176.2,1.15778]
[1758663019445,1.16307,4176.3,4176.2,0.7269]
[1758663019638,1.16307,4176.3,4176.2,1.15778]
[1758663020634,0.7322,4176.3,4176.2,1.15778]
[1758663021546,1.16307,4176.3,4176.2,1.15778]
[1758663024236,0.7322,4176.3,4176.2,1.15778]
[1758663024545,1.16307,4176.3,4176.2,1.15778]
[1758663024733,1.16307,4176.3,4176.2,0.5158]
[1758663024940,0.5127,4175.7,4175.6,0.4151]
[1758663025142,0.2064,4175.7,4175.6,1.08704]
[1758663025443,0.2064,4175.7,4175.6,1.39144]
[1758663025643,3.87967,4176.4,4175.8,1.15042]
[1758663025944,1.15307,4176.3,4176.2,0.93697]
[1758663026442,0.7222,4176.3,4176.2,1.15037]
[1758663027447,1.15307,4176.3,4176.2,1.15037]
[1758663027646,3.2078,4176.4,4176.3,0.43087]
[1758663027834,3.2078,4176.4,4176.3,1.15037]
[1758663028241,3.7205,4176.9,4176.8,0.43081]
[1758663028445,3.2078,4176.9,4176.8,1.15031]
[1758663029047,3.7205,4176.9,4176.8,1.15031]
[1758663029637,3.2078,4176.9,4176.8,1.15031]
[1758663034846,0.84667,4177.2,4177.1,0.73518]
[1758663035046,0.84667,4177.2,4177.1,0.93688]
[1758663035255,0.84667,4177.2,4177.1,0.5061]
[1758663035456,1.15297,4177.2,4177.1,0.5061]
[1758663035642,1.15297,4177.2,4177.1,1.15028]
[1758663036046,0.7222,4177.2,4177.1,1.15028]
[1758663038258,1.0767,4178.2,4177.1,1.15028]
[1758663038259,3.2078,4178.9,4178.2,1.07668]
[1758663038553,3.2078,4178.9,4178.8,1.15011]
[1758663039152,3.2078,4178.9,4178.8,1.39211]
[1758663039349,1.20552,4180.5,4179.8,0.4151]
[1758663039350,3.6237,4179.9,4179.8,0.4151]
[1758663039551,3.6237,4179.9,4179.8,0.7195]
[1758663039752,3.2078,4179.9,4179.8,0.7195]
[1758663041661,3.93,4179.9,4179.8,0.7195]
[1758663046363,3.93,4179.9,4179.8,0.5061]
[1758663047360,0.7222,4179.3,4179.2,0.63227]
[1758663047670,0.7222,4179.6,4179.5,0.7195]
[1758663050976,3.2078,4179.9,4179.6,0.3044]
[1758663051176,3.2078,4180.9,4180.8,0.8455]
[1758663051375,3.2078,4180.9,4180.8,1.1499]
[1758663052171,3.93,4180.9,4180.8,1.1499]
[1758663052371,3.93,4180.9,4180.8,1.3919]
[1758663052573,3.93,4180.9,4180.8,1.1785]
[1758663052772,3.93,4180.9,4180.8,0.4304]
[1758663053276,0.3174,4180.1,4180.0,0.55988]
[1758663053577,0.4053,4180.5,4180.4,0.63774]
[1758663053769,3.6131,4180.5,4180.4,0.96414]
[1758663053977,3.9305,4180.5,4180.4,0.96414]
[1758663054881,3.9305,4180.5,4180.4,0.5337]
[1758663055378,3.9305,4180.5,4180.1,0.3264]
[1758663055379,4.48434,4180.5,4180.1,0.3264]
[1758663055781,4.16694,4180.5,4180.1,0.3264]
[1758663055981,0.7227,4180.2,4180.1,0.5337]
[1758663056383,0.7227,4180.2,4180.1,0.7399]
[1758663057081,0.2021,4179.8,4179.7,0.5337]
[1758663057278,0.7227,4179.6,4179.5,0.96424]
[1758663057674,0.7227,4179.6,4179.5,1.17044]
[1758663058076,0.7227,4179.6,4179.5,0.7399]
[1758663058573,0.7227,4179.6,4179.4,0.243]
[1758663058878,0.3174,4179.5,4179.4,0.99995]
[1758663059075,0.7227,4179.5,4179.4,1.20725]
[1758663059281,0.7227,4179.5,4179.4,1.41345]
[1758663059476,0.7227,4179.5,4179.3,0.43056]
[1758663059679,0.7227,4179.4,4179.3,0.63786]
[1758663059874,0.7227,4179.4,4179.3,1.17046]
[1758663060788,0.7227,4179.8,4179.7,0.63782]
[1758663060992,0.7227,4179.8,4179.7,0.96422]
[1758663061184,0.7227,4179.8,4179.7,1.17042]
[1758663061679,0.7227,4179.8,4179.7,0.7399]
[1758663061985,0.7227,4179.8,4179.7,1.17042]
[1758663064696,1.1532,4179.8,4179.7,0.7399]
[1758663064989,0.7227,4179.8,4179.7,0.7399]
[1758663065188,1.1532,4179.8,4179.7,0.7399]
[1758663067081,0.7227,4179.8,4179.7,0.7399]
[1758663067286,1.1532,4179.8,4179.7,0.7399]
[1758663067990,0.7227,4179.8,4179.7,1.17042]
[1758663068510,1.15321,4179.8,4179.7,0.7399]
[1758663069990,1.15321,4179.8,4179.7,1.17042]
[1758663070190,1.15321,4179.8,4179.7,0.7399]
[1758663070390,0.2021,4179.8,4179.7,1.17042]
[1758663071488,0.63261,4179.8,4179.7,0.7399]
[1758663071794,0.2021,4179.8,4179.7,1.17042]
[1758663072692,3.2078,4180.0,4179.7,0.4135]
[1758663072893,3.2078,4180.0,4179.9,1.15139]
[1758663073293,3.63828,4180.0,4179.9,1.15139]
[1758663073794,3.85068,4180.0,4179.9,1.15139]
[1758663074095,3.4202,4180.0,4179.9,1.15139]
[1758663074684,3.2078,4180.0,4179.9,1.15139]
[1758663077594,3.4202,4180.0,4179.9,1.15139]
[1758663079592,3.2078,4180.0,4179.9,1.15139]
[1758663082603,3.9565,4180.0,4179.9,1.15139]
[1758663085105,3.6298,4180.0,4179.9,1.15139]
[1758663085304,3.9451,4180.0,4179.9,1.15139]
[1758663086002,3.6298,4180.0,4179.9,1.15139]
[1758663087999,3.2078,4180.0,4179.9,1.15139]
[1758663088201,0.5177,4180.7,4180.6,1.16712]
[1758663088504,0.2024,4180.7,4180.6,1.40912]
[1758663088703,0.5177,4180.7,4180.6,1.40912]
[1758663089299,0.3153,4181.1,4181.0,0.43038]
[1758663089609,0.7232,4181.1,4181.0,0.95338]
[1758663089797,0.5177,4181.1,4181.0,1.16708]
[1758663090002,0.5177,4181.1,4181.0,1.40908]
[1758663090307,0.7232,4181.1,4181.0,1.40908]
[1758663097017,3.7255,4181.2,4181.1,1.16707]
[1758663097407,3.931,4181.2,4181.1,1.16707]
[1758663102120,3.931,4181.2,4181.1,0.95337]
[1758663102414,3.931,4181.2,4181.1,0.98087]
[1758663103218,4.36136,4181.2,4181.1,0.67237]
[1758663103922,0.4079,4180.5,4180.4,0.523]
[1758663104114,0.7232,4180.5,4180.4,1.19544]
[1758663104618,0.7232,4180.5,4180.4,1.40914]
[1758663105015,0.4079,4180.5,4180.4,1.40914]
[1758663105224,3.2078,4181.2,4180.8,1.29051]
[1758663105517,0.7232,4181.1,4181.0,1.16708]
[1758663105906,0.2024,4181.2,4181.1,1.16707]
[1758663106110,0.5177,4181.2,4181.1,1.16707]
[1758663106311,0.7232,4181.2,4181.1,1.16707]
[1758663106717,0.4079,4181.2,4181.1,1.16707]
[1758663107216,0.7232,4181.2,4181.1,1.16707]
[1758663108216,0.5208,4181.2,4181.1,1.16707]
[1758663108415,0.5177,4181.2,4181.1,0.85857]
[1758663108821,0.2024,4181.2,4181.1,1.16707]
[1758663110419,0.3153,4181.4,4181.3,0.43035]
[1758663110714,0.5177,4181.4,4181.3,1.40905]
[1758663111112,0.5177,4181.4,4181.3,0.9787]
[1758663111714,3.63811,4181.8,4181.3,0.6702]
[1758663111913,0.94801,4181.7,4181.6,0.4282]
[1758663112213,1.15351,4181.7,4181.6,0.7367]
[1758663113918,1.14711,4181.7,4181.6,0.7367]
[1758663114109,0.63271,4181.7,4181.6,0.7367]
[1758663114312,0.64411,4181.7,4181.6,0.7367]
[1758663114513,1.17611,4181.7,4181.6,0.7367]
[1758663114915,3.63811,4181.8,4181.6,0.4282]
[1758663115122,3.2078,4181.8,4181.7,1.43381]
[1758663115622,3.6381,4181.8,4181.7,1.0035]
[1758663116217,3.8519,4181.8,4181.7,1.0035]
[1758663116625,4.1608,4181.8,4181.7,1.0035]
[1758663116926,4.3839,4181.8,4181.7,1.0035]
[1758663117323,0.7458,4181.1,4181.0,0.5721]
[1758663117516,1.17617,4181.1,4181.0,0.5721]
[1758663117720,1.17617,4181.1,4181.0,0.6835]
[1758663118024,1.17617,4181.1,4181.0,1.0035]
[1758663118525,1.17617,4181.1,4181.0,0.7615]
[1758663118724,1.17617,4181.1,4181.0,1.0035]
[1758663118927,1.17617,4181.1,4181.0,0.7817]
[1758663119517,1.17617,4181.1,4178.1,16.33263353]
[1758663119518,0.7458,4180.8,4180.3,1.70604562]
[1758663119727,0.43043,4180.6,4180.4,0.242]
[1758663120027,0.64423,4180.6,4180.5,0.8931]
[1758663120827,0.2138,4180.6,4180.5,0.8931]
[1758663121221,0.9624,4180.9,4180.8,0.7615]
[1758663121418,1.1762,4180.9,4180.8,1.0035]
[1758663122523,1.1762,4180.9,4180.8,0.7817]
[1758663123128,1.1762,4180.9,4179.7,2.13255703]
[1758663123129,0.43047,4180.2,4180.1,0.32]
[1758663123320,3.2078,4180.3,4180.1,0.6835]
[1758663123521,3.7398,4180.3,4180.2,0.5397]
[1758663123722,3.9536,4180.3,4180.2,0.5397]
[1758663126524,1.17627,4180.2,4180.1,0.7817]
[1758663126924,3.2078,4180.3,4180.2,0.43047]
[1758663127124,3.2078,4180.8,4180.6,0.32]
[1758663127330,3.2078,4180.8,4180.7,1.43391]
[1758663127633,3.4216,4180.8,4180.7,1.43391]
[1758663128729,3.2078,4180.8,4180.7,1.43391]
[1758663129127,3.4216,4181.3,4181.2,0.87186]
[1758663129324,3.4216,4181.3,4181.2,1.43386]
[1758663129725,3.2078,4181.3,4181.2,1.43386]
[1758663130332,0.7458,4181.6,4181.5,0.97213]
[1758663130532,0.7458,4181.6,4181.5,1.19183]
[1758663130835,1.17612,4181.6,4181.5,0.7615]
[1758663133541,0.7458,4181.6,4181.5,0.8865]
[1758663134125,0.2138,4181.6,4181.5,0.8865]
[1758663134327,3.2078,4181.8,4181.7,0.2076]
[1758663134527,3.4274,4181.8,4181.7,0.7463]
[1758663135030,4.3929,4181.8,4181.7,0.7463]
[1758663135430,0.3235,4180.6,4180.5,0.43043]
[1758663135732,0.7548,4180.6,4180.5,1.17673]
[1758663136131,0.7548,4180.6,4180.5,0.7463]
[1758663136330,1.18522,4180.6,4180.5,0.7463]
[1758663138032,1.18525,4180.4,4180.3,0.7813]
[1758663138731,1.18525,4180.4,4180.3,1.21176]
[1758663139038,1.18525,4180.4,4180.3,0.7813]
[1758663140638,0.7548,4180.4,4180.3,0.7813]
[1758663140840,0.7548,4180.4,4180.3,1.21176]
[1758663141232,1.18525,4180.4,4180.3,1.21176]
[1758663141432,1.18525,4180.4,4180.3,0.7813]
[1758663141837,1.18525,4180.4,4180.3,1.21176]
[1758663142243,1.18525,4180.4,4180.3,0.7813]
[1758663143545,0.7548,4180.4,4180.3,0.96976]
[1758663143737,0.7548,4180.4,4180.3,1.41876]
[1758663144643,0.64719,4180.9,4180.8,0.4241]
[1758663144945,1.18509,4180.9,4180.8,0.9733]
[1758663146246,1.18509,4180.9,4180.8,0.7534]
[1758663148149,1.18509,4180.9,4180.8,0.9733]
[1758663148441,1.18509,4180.9,4180.8,1.4037]
[1758663148849,1.18509,4180.9,4180.8,0.9733]
[1758663152752,1.18509,4180.9,4180.8,1.4037]
[1758663152949,1.18509,4180.9,4180.8,0.9733]
[1758663155655,1.18509,4180.9,4180.8,1.4037]
[1758663156760,1.18509,4180.9,4180.8,0.9733]
[1758663157056,1.18509,4180.9,4180.8,1.4037]
[1758663157657,0.7547,4180.9,4180.8,1.4037]
[1758663157860,0.4251,4180.9,4180.8,1.4037]
[1758663158054,0.7547,4180.9,4180.8,1.4037]
[1758663159161,1.18509,4180.9,4180.8,1.4037]
[1758663159364,3.7457,4181.2,4181.1,0.7313]
[1758663159565,3.9625,4181.2,4181.1,0.7313]
[1758663159860,4.39286,4181.2,4181.1,1.16167]
[1758663160062,4.39286,4181.2,4181.1,0.7313]
[1758663162162,4.39286,4181.2,4181.1,1.16167]
[1758663162364,4.39286,4181.2,4181.1,0.7313]
[1758663162963,4.39286,4181.2,4181.1,1.16167]
[1758663163164,4.39286,4181.2,4181.1,0.7313]
[1758663163366,4.39286,4181.2,4181.1,0.5114]
[1758663163568,4.39286,4181.2,4181.1,0.94177]
[1758663163865,4.39286,4181.2,4181.1,0.5114]
[1758663164263,3.9625,4181.2,4181.1,0.94177]
[1758663164462,4.39286,4181.2,4181.1,0.94177]
[1758663165860,3.9625,4181.2,4181.1,1.16167]
[1758663166166,0.7547,4181.2,4181.1,1.16167]
[1758663166768,1.18506,4181.2,4181.1,1.16167]
[1758663169764,3.2078,4181.7,4181.5,0.43032]
[1758663169971,1.25876622,4181.6,4181.5,0.5114]
[1758663170168,1.68908622,4181.6,4181.5,0.94173]
[1758663170572,1.25876622,4181.6,4181.5,0.94173]
[1758663171064,1.25876622,4181.6,4181.5,1.16163]
[1758663171273,0.2168,4181.6,4181.5,1.28543]
[1758663171475,0.43028,4182.0,4181.9,0.63449]
[1758663171769,1.18498,4182.0,4181.9,0.94169]
[1758663172166,0.7547,4182.0,4181.9,0.94169]
[1758663172470,0.7547,4182.0,4181.9,1.16159]